[Event "*** Titled Tuesday 3|2 Blitz"]
[Site "Chess.com"]
[Date "2017.03.07"]
[Round "2"]
[White "SantoBlue"]
[Black "JaimeSantosLatasa"]
[Result "0-1"]
[WhiteElo "2379"]
[BlackElo "2602"]
[TimeControl "180+2"]
[EndTime "13:23:21 PST"]
[Termination "JaimeSantosLatasa won by resignation"]

1. e4 {[%clk 0:03:02]} 1... e5 {[%clk 0:03:00.1]} 2. Nf3 {[%clk 0:03:02.5]} 2...
Nc6 {[%clk 0:03:01.6]} 3. Bb5 {[%clk 0:03:03.4]} 3... a6 {[%clk 0:03:02.1]} 4.
Ba4 {[%clk 0:03:01.3]} 4... Nf6 {[%clk 0:03:02.7]} 5. O-O {[%clk 0:03:01.6]}
5... Be7 {[%clk 0:03:03]} 6. Re1 {[%clk 0:03:02.2]} 6... b5 {[%clk 0:03:03.9]}
7. Bb3 {[%clk 0:03:03.4]} 7... d6 {[%clk 0:03:05.4]} 8. c3 {[%clk 0:02:55.7]}
8... O-O {[%clk 0:03:05.9]} 9. h3 {[%clk 0:02:55.4]} 9... Na5 {[%clk 0:03:07]}
10. Bc2 {[%clk 0:02:57]} 10... c5 {[%clk 0:03:08.3]} 11. d4 {[%clk 0:02:58.6]}
11... Nd7 {[%clk 0:03:09.8]} 12. Nbd2 {[%clk 0:02:55.2]} 12... exd4 {[%clk
0:03:10.1]} 13. cxd4 {[%clk 0:02:57.1]} 13... Nc6 {[%clk 0:03:10.7]} 14. d5
{[%clk 0:02:58.2]} 14... Nce5 {[%clk 0:03:11.6]} 15. a4 {[%clk 0:02:59.8]} 15...
Bb7 {[%clk 0:03:12]} 16. Nh2 {[%clk 0:02:57.2]} 16... Ng6 {[%clk 0:03:06.6]} 17.
Ndf1 {[%clk 0:02:56.8]} 17... Bg5 {[%clk 0:03:05.6]} 18. Ne3 {[%clk 0:02:55.5]}
18... c4 {[%clk 0:03:00.7]} 19. g3 {[%clk 0:02:53.7]} 19... Nc5 {[%clk 0:02:58]}
20. h4 {[%clk 0:02:54.7]} 20... Bf6 {[%clk 0:02:58]} 21. h5 {[%clk 0:02:55.5]}
21... Ne5 {[%clk 0:02:58.5]} 22. Nhg4 {[%clk 0:02:55.6]} 22... Ncd3 {[%clk
0:02:53.7]} 23. Rf1 {[%clk 0:02:42.5]} 23... Nxc1 {[%clk 0:02:44.1]} 24. Nxf6+
{[%clk 0:02:43.4]} 24... Qxf6 {[%clk 0:02:44.1]} 25. Rxc1 {[%clk 0:02:45]} 25...
Rfe8 {[%clk 0:02:34.3]} 26. Kg2 {[%clk 0:02:40.7]} 26... Bc8 {[%clk 0:02:27.4]}
27. f4 {[%clk 0:02:38.4]} 27... Nd3 {[%clk 0:02:18.1]} 28. Bxd3 {[%clk
0:02:38.7]} 28... cxd3 {[%clk 0:02:20]} 29. Qxd3 {[%clk 0:02:30.6]} 29... Qxb2+
{[%clk 0:02:20.3]} 30. Kf3 {[%clk 0:02:00.8]} 30... bxa4 {[%clk 0:02:20.5]} 31.
Rc7 {[%clk 0:01:27.5]} 31... Qh2 {[%clk 0:02:11.4]} 32. f5 {[%clk 0:01:03.1]}
32... a5 {[%clk 0:01:58.8]} 33. Rc6 {[%clk 0:00:44.9]} 33... Rb8 {[%clk
0:01:49.8]} 34. Rfc1 {[%clk 0:00:39.4]} 34... Bd7 {[%clk 0:01:44.5]} 35. Rxd6
{[%clk 0:00:36.5]} 35... Rb3 {[%clk 0:01:39.1]} 36. Rc3 {[%clk 0:00:21.4]} 36...
Bb5 {[%clk 0:01:39.4]} 37. Qc2 {[%clk 0:00:19.5]} 37... Qxh5+ {[%clk 0:01:34.9]}
38. Kf4 {[%clk 0:00:20.8]} 38... g5+ {[%clk 0:01:29.4]} 39. fxg6 {[%clk
0:00:22]} 39... Qe5+ {[%clk 0:01:28.9]} 40. Kg4 {[%clk 0:00:18.5]} 40... Rxc3
{[%clk 0:01:23.2]} 41. gxf7+ {[%clk 0:00:19.7]} 41... Kxf7 {[%clk 0:01:23.6]}
42. Qf2+ {[%clk 0:00:21.2]} 42... Kg8 {[%clk 0:01:24.5]} 43. Nf5 {[%clk
0:00:21.5]} 43... Qxe4+ {[%clk 0:01:16.7]} 44. Kg5 {[%clk 0:00:22.9]} 44... Rf3
{[%clk 0:01:10.7]} 45. Nh6+ {[%clk 0:00:23.8]} 45... Kg7 {[%clk 0:01:09.5]} 46.
Qa7+ {[%clk 0:00:04.7]} 46... Qe7+ {[%clk 0:01:07]} 47. Qxe7+ {[%clk 0:00:04.6]}
47... Rxe7 {[%clk 0:01:08.9]} 48. Rb6 {[%clk 0:00:05.3]} 48... Rxg3+ {[%clk
0:01:08.1]} 49. Kf4 {[%clk 0:00:06.2]} 49... Bd3 {[%clk 0:01:01]} 50. Kxg3
{[%clk 0:00:06.5]} 50... a3 {[%clk 0:01:01.6]} 51. Rb3 {[%clk 0:00:04.4]} 51...
a2 {[%clk 0:01:00.2]} 52. Ra3 {[%clk 0:00:05.7]} 52... Kxh6 {[%clk 0:00:59]} 53.
Rxa2 {[%clk 0:00:05.6]} 53... Ra7 {[%clk 0:00:58.5]} 54. Kf4 {[%clk 0:00:07]}
54... Bc4 {[%clk 0:00:59.7]} 55. Rh2+ {[%clk 0:00:07]} 55... Kg7 {[%clk
0:01:00.9]} 56. Ke5 {[%clk 0:00:08.9]} 56... a4 {[%clk 0:01:02.2]} 57. Rg2+
{[%clk 0:00:08]} 57... Kf8 {[%clk 0:01:02.4]} 58. Rf2+ {[%clk 0:00:08.5]} 58...
Ke8 {[%clk 0:01:02.6]} 59. Rg2 {[%clk 0:00:07.8]} 59... a3 {[%clk 0:01:01.6]}
60. Ke6 {[%clk 0:00:08.7]} 60... Bxd5+ {[%clk 0:01:01.2]} 61. Kxd5 {[%clk
0:00:09.7]} 61... a2 {[%clk 0:01:02.6]} 62. Ke6 {[%clk 0:00:11.1]} 62... Ra6+
{[%clk 0:01:02.9]} 0-1

[Event "*** Titled Tuesday 3|2 Blitz"]
[Site "Chess.com"]
[Date "2017.03.07"]
[Round "2"]
[White "hsskoo"]
[Black "Shivagami"]
[Result "0-1"]
[WhiteElo "1923"]
[BlackElo "1961"]
[TimeControl "180+2"]
[EndTime "13:23:28 PST"]
[Termination "Shivagami won on time"]

1. e4 {[%clk 0:03:00]} 1... e5 {[%clk 0:03:00]} 2. Nf3 {[%clk 0:02:58.6]} 2...
Nc6 {[%clk 0:03:00.7]} 3. d4 {[%clk 0:02:58.5]} 3... exd4 {[%clk 0:03:00.9]} 4.
Bc4 {[%clk 0:02:58.4]} 4... Nf6 {[%clk 0:03:00.1]} 5. Ng5 {[%clk 0:02:53.6]}
5... Ne5 {[%clk 0:02:47.8]} 6. Qxd4 {[%clk 0:02:48.8]} 6... Nxc4 {[%clk
0:02:44.6]} 7. Qxc4 {[%clk 0:02:43.1]} 7... d5 {[%clk 0:02:40.1]} 8. exd5 {[%clk
0:02:42.7]} 8... Nxd5 {[%clk 0:02:10.2]} 9. Nc3 {[%clk 0:02:37]} 9... Qe7+
{[%clk 0:01:53]} 10. Nce4 {[%clk 0:02:14.4]} 10... Qb4+ {[%clk 0:01:40.4]} 11.
Nd2 {[%clk 0:02:06.2]} 11... Qxc4 {[%clk 0:01:33.6]} 12. Nxc4 {[%clk 0:02:00]}
12... f6 {[%clk 0:01:20.6]} 13. Nf3 {[%clk 0:01:57.2]} 13... Bf5 {[%clk
0:01:18.1]} 14. c3 {[%clk 0:01:53]} 14... O-O-O {[%clk 0:01:16.3]} 15. O-O
{[%clk 0:01:51.9]} 15... g5 {[%clk 0:01:13.7]} 16. Re1 {[%clk 0:01:46.8]} 16...
h5 {[%clk 0:00:59.8]} 17. Nd4 {[%clk 0:01:36.4]} 17... Bd3 {[%clk 0:00:56]} 18.
Ne3 {[%clk 0:01:35.5]} 18... Nf4 {[%clk 0:00:27]} 19. g3 {[%clk 0:01:21.1]}
19... Ng6 {[%clk 0:00:24.6]} 20. Ne6 {[%clk 0:00:57.7]} 20... Re8 {[%clk
0:00:24.4]} 21. Nxf8 {[%clk 0:00:55.5]} 21... Rhxf8 {[%clk 0:00:26.3]} 22. Bd2
{[%clk 0:00:50.8]} 22... Ne5 {[%clk 0:00:26.3]} 23. Kg2 {[%clk 0:00:31.9]} 23...
Be4+ {[%clk 0:00:24.1]} 24. Kf1 {[%clk 0:00:31.3]} 24... f5 {[%clk 0:00:24.6]}
25. Rad1 {[%clk 0:00:20.4]} 25... f4 {[%clk 0:00:23.2]} 26. Ng2 {[%clk
0:00:13.3]} 26... Bd3+ {[%clk 0:00:23.2]} 27. Kg1 {[%clk 0:00:11.8]} 27... Nf3+
{[%clk 0:00:24.1]} 28. Kh1 {[%clk 0:00:12.6]} 28... Nxe1 {[%clk 0:00:24.6]} 29.
Bxe1 {[%clk 0:00:12]} 29... Be2 {[%clk 0:00:22.5]} 30. Rc1 {[%clk 0:00:11.9]}
30... Bf3 {[%clk 0:00:21.9]} 31. Kg1 {[%clk 0:00:12.5]} 31... Re2 {[%clk
0:00:21.1]} 32. c4 {[%clk 0:00:11.8]} 32... Rxb2 {[%clk 0:00:21.1]} 33. Bc3
{[%clk 0:00:11.9]} 33... Rxa2 {[%clk 0:00:21.9]} 34. Bb4 {[%clk 0:00:10.6]}
34... Re8 {[%clk 0:00:21.5]} 35. gxf4 {[%clk 0:00:05.4]} 35... gxf4 {[%clk
0:00:17]} 36. Nxf4 {[%clk 0:00:05.5]} 36... Rg8+ {[%clk 0:00:17.4]} 37. Kf1
{[%clk 0:00:05.9]} 37... Rg5 {[%clk 0:00:12.4]} 38. Be7 {[%clk 0:00:02.5]} 38...
Re5 {[%clk 0:00:11.8]} 0-1

[Event "*** Titled Tuesday 3|2 Blitz"]
[Site "Chess.com"]
[Date "2017.03.07"]
[Round "2"]
[White "Gordima"]
[Black "daro94"]
[Result "0-1"]
[WhiteElo "2475"]
[BlackElo "2687"]
[TimeControl "180+2"]
[EndTime "13:23:38 PST"]
[Termination "daro94 won by resignation"]

1. Nf3 {[%clk 0:03:01.5]} 1... Nf6 {[%clk 0:03:00.8]} 2. c4 {[%clk 0:03:02.5]}
2... g6 {[%clk 0:03:01.9]} 3. Nc3 {[%clk 0:03:01.2]} 3... d5 {[%clk 0:03:02.6]}
4. cxd5 {[%clk 0:02:59.6]} 4... Nxd5 {[%clk 0:03:04.5]} 5. h4 {[%clk 0:03:00.1]}
5... Bg7 {[%clk 0:03:02.6]} 6. e4 {[%clk 0:02:58.5]} 6... Nxc3 {[%clk
0:03:00.9]} 7. dxc3 {[%clk 0:02:59.3]} 7... Qxd1+ {[%clk 0:03:02.1]} 8. Kxd1
{[%clk 0:03:00.5]} 8... Nd7 {[%clk 0:02:57.6]} 9. Bf4 {[%clk 0:03:00.9]} 9...
Nc5 {[%clk 0:02:52.7]} 10. Nd2 {[%clk 0:03:00.6]} 10... e5 {[%clk 0:02:32.1]}
11. Be3 {[%clk 0:03:01.1]} 11... Ne6 {[%clk 0:02:33.4]} 12. h5 {[%clk
0:02:57.9]} 12... Bd7 {[%clk 0:02:31.4]} 13. g3 {[%clk 0:02:40]} 13... O-O-O
{[%clk 0:02:29.9]} 14. Bh3 {[%clk 0:02:41]} 14... b6 {[%clk 0:02:20.2]} 15. a4
{[%clk 0:02:38.2]} 15... a5 {[%clk 0:02:20.6]} 16. Kc2 {[%clk 0:02:36.9]} 16...
Rhf8 {[%clk 0:02:15.3]} 17. hxg6 {[%clk 0:02:33.9]} 17... hxg6 {[%clk
0:02:15.9]} 18. f4 {[%clk 0:01:56.4]} 18... f5 {[%clk 0:01:54.7]} 19. exf5
{[%clk 0:01:45.3]} 19... gxf5 {[%clk 0:01:55.5]} 20. Bg2 {[%clk 0:01:36.7]}
20... Rh8 {[%clk 0:01:44.4]} 21. Nc4 {[%clk 0:01:27.1]} 21... Rxh1 {[%clk
0:01:40.9]} 22. Bxh1 {[%clk 0:01:16]} 22... exf4 {[%clk 0:01:38.3]} 23. gxf4
{[%clk 0:01:16]} 23... Rh8 {[%clk 0:01:37.3]} 24. Kb3 {[%clk 0:01:11.9]} 24...
Bf8 {[%clk 0:01:00.7]} 25. Ne5 {[%clk 0:01:03.9]} 25... Bc5 {[%clk 0:00:57.2]}
26. Bd2 {[%clk 0:00:47.4]} 26... Rh2 {[%clk 0:00:46.1]} 27. Rd1 {[%clk
0:00:48.4]} 27... Bd6 {[%clk 0:00:46.4]} 28. Nxd7 {[%clk 0:00:48.4]} 28... Kxd7
{[%clk 0:00:47.7]} 29. Be3 {[%clk 0:00:44.2]} 29... Ke7 {[%clk 0:00:46.1]} 30.
Bc6 {[%clk 0:00:39.4]} 30... Re2 {[%clk 0:00:37]} 31. Bc1 {[%clk 0:00:35.6]}
31... Kf6 {[%clk 0:00:29.4]} 32. Rh1 {[%clk 0:00:30.6]} 32... Bxf4 {[%clk
0:00:28.1]} 33. Bxf4 {[%clk 0:00:29.2]} 33... Nxf4 {[%clk 0:00:30]} 34. Rh7
{[%clk 0:00:22.7]} 34... Ne6 {[%clk 0:00:30.4]} 35. Ka3 {[%clk 0:00:17]} 35...
f4 {[%clk 0:00:30.3]} 36. Rh6+ {[%clk 0:00:08.7]} 36... Kg5 {[%clk 0:00:26.3]}
37. Rh7 {[%clk 0:00:06.9]} 37... Kg4 {[%clk 0:00:24.3]} 38. Rf7 {[%clk
0:00:04.2]} 38... Re3 {[%clk 0:00:21.4]} 39. Bd7 {[%clk 0:00:03.8]} 39... Kg5
{[%clk 0:00:19.7]} 40. Bc6 {[%clk 0:00:03.7]} 40... Re5 {[%clk 0:00:18.4]} 41.
Re7 {[%clk 0:00:03.4]} 41... Kf6 {[%clk 0:00:17.7]} 42. Rh7 {[%clk 0:00:04.4]}
42... Rf5 {[%clk 0:00:17.4]} 43. Rh2 {[%clk 0:00:05.5]} 43... f3 {[%clk
0:00:18.1]} 44. Rf2 {[%clk 0:00:05.3]} 44... Ng5 {[%clk 0:00:19.4]} 45. b4
{[%clk 0:00:06.8]} 45... Ke5 {[%clk 0:00:19.4]} 46. bxa5 {[%clk 0:00:06.8]}
46... bxa5 {[%clk 0:00:21.3]} 47. Kb3 {[%clk 0:00:07.9]} 47... Kf4 {[%clk
0:00:21.4]} 48. Rf1 {[%clk 0:00:09]} 48... Ke3 {[%clk 0:00:22]} 49. Bb5 {[%clk
0:00:08.9]} 49... f2 {[%clk 0:00:22.8]} 50. Rd1 {[%clk 0:00:09.6]} 50... Ne4
{[%clk 0:00:21.5]} 51. Rd3+ {[%clk 0:00:09.8]} 51... Kf4 {[%clk 0:00:22.9]} 52.
Rd1 {[%clk 0:00:10.2]} 52... Ng3 {[%clk 0:00:17.2]} 53. Kc4 {[%clk 0:00:09.8]}
53... f1=Q+ {[%clk 0:00:16.9]} 0-1

[Event "*** Titled Tuesday 3|2 Blitz"]
[Site "Chess.com"]
[Date "2017.03.07"]
[Round "2"]
[White "Danhy"]
[Black "MateusViageiro"]
[Result "1-0"]
[WhiteElo "2345"]
[BlackElo "2222"]
[TimeControl "180+2"]
[EndTime "13:23:42 PST"]
[Termination "Danhy won by resignation"]

1. c4 {[%clk 0:03:02]} 1... Nf6 {[%clk 0:02:59]} 2. g3 {[%clk 0:03:02.6]} 2...
g6 {[%clk 0:02:59]} 3. Bg2 {[%clk 0:03:03.6]} 3... Bg7 {[%clk 0:03:00.5]} 4. Nc3
{[%clk 0:03:05.3]} 4... O-O {[%clk 0:03:01.2]} 5. e4 {[%clk 0:03:06.4]} 5... d6
{[%clk 0:02:59.9]} 6. d3 {[%clk 0:03:07.5]} 6... c5 {[%clk 0:03:00.4]} 7. Nge2
{[%clk 0:03:08.6]} 7... Nc6 {[%clk 0:03:01.5]} 8. O-O {[%clk 0:03:08.3]} 8... e5
{[%clk 0:03:02.7]} 9. h3 {[%clk 0:03:08.1]} 9... Nd4 {[%clk 0:03:03.7]} 10. Be3
{[%clk 0:03:06.6]} 10... a6 {[%clk 0:03:03.8]} 11. Rb1 {[%clk 0:03:00.7]} 11...
Rb8 {[%clk 0:03:04.6]} 12. b4 {[%clk 0:03:00.8]} 12... Bd7 {[%clk 0:02:53.3]}
13. b5 {[%clk 0:02:52.2]} 13... axb5 {[%clk 0:02:53.8]} 14. Bxd4 {[%clk
0:02:53.4]} 14... cxd4 {[%clk 0:02:42.4]} 15. Nxb5 {[%clk 0:02:53.5]} 15... Ne8
{[%clk 0:02:33.4]} 16. Qd2 {[%clk 0:02:40.6]} 16... Bc6 {[%clk 0:02:33.7]} 17.
Rb2 {[%clk 0:02:36.4]} 17... f5 {[%clk 0:02:33.8]} 18. f3 {[%clk 0:02:24.6]}
18... Ra8 {[%clk 0:02:17.4]} 19. Rfb1 {[%clk 0:02:20]} 19... fxe4 {[%clk
0:02:04.3]} 20. fxe4 {[%clk 0:02:19.9]} 20... Qa5 {[%clk 0:01:50.6]} 21. Qc2
{[%clk 0:01:33]} 21... Bh6 {[%clk 0:01:45]} 22. Nc1 {[%clk 0:01:29.4]} 22...
Be3+ {[%clk 0:01:38.4]} 23. Kh2 {[%clk 0:01:29.5]} 23... Qe1 {[%clk 0:00:47.6]}
24. Nb3 {[%clk 0:01:20.4]} 24... Qf2 {[%clk 0:00:42.7]} 25. Qd1 {[%clk
0:00:57.8]} 25... Qf7 {[%clk 0:00:36.3]} 26. Nd2 {[%clk 0:00:53.6]} 26... Bxb5
{[%clk 0:00:29.2]} 27. Rxb5 {[%clk 0:00:42.7]} 27... Rxa2 {[%clk 0:00:29.5]} 28.
Rxb7 {[%clk 0:00:22.7]} 28... Qf2 {[%clk 0:00:28.8]} 29. R7b2 {[%clk 0:00:23.4]}
29... Rxb2 {[%clk 0:00:21.4]} 30. Rxb2 {[%clk 0:00:24.3]} 30... Qf6 {[%clk
0:00:18.4]} 31. Nf1 {[%clk 0:00:22.8]} 31... Bh6 {[%clk 0:00:18.1]} 32. Qg4
{[%clk 0:00:20.8]} 32... Qe7 {[%clk 0:00:15.6]} 33. Rb6 {[%clk 0:00:19]} 33...
Nf6 {[%clk 0:00:15.4]} 34. Qe2 {[%clk 0:00:19.2]} 34... Qc7 {[%clk 0:00:14.3]}
35. Rb5 {[%clk 0:00:19]} 35... Rb8 {[%clk 0:00:13.8]} 36. Qb2 {[%clk 0:00:17.6]}
36... Rxb5 {[%clk 0:00:12.5]} 37. cxb5 {[%clk 0:00:18.7]} 37... Qb6 {[%clk
0:00:12.9]} 38. Qb3+ {[%clk 0:00:18.6]} 38... Kf8 {[%clk 0:00:13.1]} 39. Bf3
{[%clk 0:00:16.6]} 39... Ke7 {[%clk 0:00:13.6]} 40. Kg2 {[%clk 0:00:17.4]} 40...
Nd7 {[%clk 0:00:13.6]} 41. Bg4 {[%clk 0:00:11.9]} 41... Nf6 {[%clk 0:00:13.3]}
42. Qe6+ {[%clk 0:00:11.6]} 42... Kd8 {[%clk 0:00:13.1]} 43. Qxf6+ {[%clk
0:00:12.5]} 43... Kc7 {[%clk 0:00:14.1]} 44. Qe7+ {[%clk 0:00:12.9]} 44... Kb8
{[%clk 0:00:15]} 45. Qe8+ {[%clk 0:00:13.5]} 45... Ka7 {[%clk 0:00:16.2]} 46.
Qd7+ {[%clk 0:00:14.3]} 46... Kb8 {[%clk 0:00:16.9]} 47. Qc6 {[%clk 0:00:15.3]}
47... Qxc6 {[%clk 0:00:17]} 48. bxc6 {[%clk 0:00:16.2]} 48... Kc7 {[%clk
0:00:18.9]} 49. Bd7 {[%clk 0:00:17.3]} 49... Bc1 {[%clk 0:00:19.2]} 50. Kf3
{[%clk 0:00:17.1]} 50... h6 {[%clk 0:00:20.2]} 51. g4 {[%clk 0:00:18.2]} 51...
g5 {[%clk 0:00:20.9]} 52. Ng3 {[%clk 0:00:18.9]} 1-0

[Event "*** Titled Tuesday 3|2 Blitz"]
[Site "Chess.com"]
[Date "2017.03.07"]
[Round "2"]
[White "P0ubelle"]
[Black "quesfr"]
[Result "1-0"]
[WhiteElo "2048"]
[BlackElo "2157"]
[TimeControl "180+2"]
[EndTime "13:23:54 PST"]
[Termination "P0ubelle won by resignation"]

1. e4 {[%clk 0:03:02]} 1... e6 {[%clk 0:03:00.3]} 2. d4 {[%clk 0:03:02.6]} 2...
d5 {[%clk 0:03:00.3]} 3. Nd2 {[%clk 0:03:03.4]} 3... c5 {[%clk 0:03:00.5]} 4.
Ngf3 {[%clk 0:02:55.9]} 4... Nc6 {[%clk 0:03:01.2]} 5. exd5 {[%clk 0:02:52.2]}
5... exd5 {[%clk 0:03:02.2]} 6. Bb5 {[%clk 0:02:47.3]} 6... Qe7+ {[%clk
0:03:03]} 7. Kf1 {[%clk 0:02:44.9]} 7... Nf6 {[%clk 0:02:49.8]} 8. Ne5 {[%clk
0:02:31.1]} 8... Bd7 {[%clk 0:02:28.8]} 9. Nxd7 {[%clk 0:02:31.1]} 9... Qxd7
{[%clk 0:02:29.2]} 10. Nf3 {[%clk 0:02:27.3]} 10... Bd6 {[%clk 0:02:14.7]} 11.
dxc5 {[%clk 0:02:17.7]} 11... Bxc5 {[%clk 0:02:14.9]} 12. Qe2+ {[%clk
0:02:12.4]} 12... Qe6 {[%clk 0:02:06]} 13. Qxe6+ {[%clk 0:02:11.8]} 13... fxe6
{[%clk 0:02:06.2]} 14. Ne5 {[%clk 0:02:12.3]} 14... Rc8 {[%clk 0:02:02.4]} 15.
f3 {[%clk 0:02:02.7]} 15... Ke7 {[%clk 0:02:03.1]} 16. Nxc6+ {[%clk 0:02:02.8]}
16... bxc6 {[%clk 0:02:03.4]} 17. Bd3 {[%clk 0:02:04.4]} 17... Rb8 {[%clk
0:01:38.7]} 18. b3 {[%clk 0:02:04.3]} 18... Bd4 {[%clk 0:01:37.6]} 19. Rb1
{[%clk 0:02:04.6]} 19... Rhf8 {[%clk 0:01:37.4]} 20. Ke2 {[%clk 0:02:01.3]}
20... Kd6 {[%clk 0:01:31.9]} 21. c4 {[%clk 0:02:00.1]} 21... e5 {[%clk
0:01:28.7]} 22. Be3 {[%clk 0:01:58.5]} 22... Bxe3 {[%clk 0:01:25.2]} 23. Kxe3
{[%clk 0:02:00.4]} 23... e4 {[%clk 0:01:24.3]} 24. fxe4 {[%clk 0:01:57.9]} 24...
Nxe4 {[%clk 0:01:25.3]} 25. Bxe4 {[%clk 0:01:58.2]} 25... Rbe8 {[%clk 0:01:26]}
26. cxd5 {[%clk 0:01:53.9]} 26... cxd5 {[%clk 0:01:26.3]} 27. Rhf1 {[%clk
0:01:52.9]} 27... Rxe4+ {[%clk 0:01:26.2]} 28. Kd3 {[%clk 0:01:53.8]} 28... Rfe8
{[%clk 0:01:08.1]} 29. Rbd1 {[%clk 0:01:45.3]} 29... Re3+ {[%clk 0:01:05.1]} 30.
Kc2 {[%clk 0:01:46.4]} 30... R8e7 {[%clk 0:00:42.5]} 31. Rf5 {[%clk 0:01:46.1]}
31... Re2+ {[%clk 0:00:42.7]} 32. Rd2 {[%clk 0:01:44.8]} 32... Rxd2+ {[%clk
0:00:40]} 33. Kxd2 {[%clk 0:01:46.7]} 33... Kc5 {[%clk 0:00:39.2]} 34. Kd3
{[%clk 0:01:45.7]} 34... a5 {[%clk 0:00:37.5]} 35. Rf8 {[%clk 0:01:33.9]} 35...
Kb4 {[%clk 0:00:30.6]} 36. Ra8 {[%clk 0:01:29.7]} 36... Rf7 {[%clk 0:00:29.6]}
37. Ke3 {[%clk 0:01:28.3]} 37... Re7+ {[%clk 0:00:28.8]} 38. Kd3 {[%clk
0:01:29.3]} 38... Rf7 {[%clk 0:00:29.5]} 39. Ke3 {[%clk 0:01:30.7]} 39... d4+
{[%clk 0:00:28.9]} 40. Kxd4 {[%clk 0:01:30.2]} 40... Rf2 {[%clk 0:00:30]} 41.
a3+ {[%clk 0:01:23]} 41... Kxa3 {[%clk 0:00:29.6]} 42. Rxa5+ {[%clk 0:01:24.2]}
42... Kxb3 {[%clk 0:00:30.1]} 43. Rg5 {[%clk 0:01:25.8]} 43... g6 {[%clk
0:00:29.7]} 44. Ke3 {[%clk 0:01:25.9]} 44... Rf7 {[%clk 0:00:28.2]} 45. Rc5
{[%clk 0:01:25.7]} 45... Kb4 {[%clk 0:00:28.6]} 46. Rc8 {[%clk 0:01:25.1]} 46...
Kb5 {[%clk 0:00:29.4]} 47. Ke2 {[%clk 0:01:24.8]} 47... Kb6 {[%clk 0:00:30.2]}
48. Ke3 {[%clk 0:01:23.4]} 48... Kb7 {[%clk 0:00:25.6]} 49. Rc2 {[%clk 0:01:23]}
49... Rf5 {[%clk 0:00:25.7]} 50. Ke4 {[%clk 0:01:23.5]} 50... Kb6 {[%clk
0:00:26]} 51. g4 {[%clk 0:01:24.7]} 51... Rf7 {[%clk 0:00:25.3]} 52. h4 {[%clk
0:01:25.6]} 52... Kb7 {[%clk 0:00:23.3]} 53. Rc4 {[%clk 0:01:25.3]} 53... Kb6
{[%clk 0:00:23.8]} 54. Ke5 {[%clk 0:01:26.2]} 54... Kb7 {[%clk 0:00:21.4]} 55.
Ke6 {[%clk 0:01:26.5]} 55... Rf1 {[%clk 0:00:22.2]} 56. Kd6 {[%clk 0:01:25.9]}
56... Kb6 {[%clk 0:00:20.5]} 57. Ke5 {[%clk 0:01:23.4]} 57... Rh1 {[%clk
0:00:18.5]} 58. g5 {[%clk 0:01:24.5]} 58... Kb5 {[%clk 0:00:18.5]} 59. Rf4
{[%clk 0:01:25.2]} 59... Kc5 {[%clk 0:00:18.7]} 60. Kf6 {[%clk 0:01:26.3]} 60...
Kd5 {[%clk 0:00:17.7]} 61. Kg7 {[%clk 0:01:27.6]} 61... Ke5 {[%clk 0:00:18.8]}
62. Ra4 {[%clk 0:01:28.5]} 62... Kf5 {[%clk 0:00:14.9]} 63. Kxh7 {[%clk
0:01:29.7]} 63... Rh2 {[%clk 0:00:15.3]} 64. Ra5+ {[%clk 0:01:30.4]} 64... Ke6
{[%clk 0:00:16.1]} 65. Kxg6 {[%clk 0:01:31.3]} 65... Rxh4 {[%clk 0:00:17]} 66.
Rf5 {[%clk 0:01:32.7]} 66... Ke7 {[%clk 0:00:16.9]} 67. Rf6 {[%clk 0:01:34.6]}
67... Rg4 {[%clk 0:00:13]} 68. Rf5 {[%clk 0:01:36.5]} 68... Rg1 {[%clk
0:00:12.8]} 69. Rf6 {[%clk 0:01:38.4]} 69... Rg2 {[%clk 0:00:13.8]} 70. Rf3
{[%clk 0:01:40.3]} 70... Rg1 {[%clk 0:00:14.7]} 71. Kh6 {[%clk 0:01:41.1]} 71...
Rh1+ {[%clk 0:00:06.9]} 72. Kg7 {[%clk 0:01:42]} 72... Rg1 {[%clk 0:00:04.9]}
73. Re3+ {[%clk 0:01:43]} 73... Kd7 {[%clk 0:00:05]} 74. g6 {[%clk 0:01:44.5]}
74... Rg2 {[%clk 0:00:05.1]} 75. Re5 {[%clk 0:01:44.6]} 75... Kd6 {[%clk
0:00:05.1]} 76. Kf6 {[%clk 0:01:45.9]} 76... Rf2+ {[%clk 0:00:05.2]} 77. Rf5
{[%clk 0:01:47.1]} 77... Rxf5+ {[%clk 0:00:04.9]} 78. Kxf5 {[%clk 0:01:49]}
78... Ke7 {[%clk 0:00:06.3]} 79. Kg5 {[%clk 0:01:50.9]} 79... Kf8 {[%clk
0:00:07.2]} 80. Kh6 {[%clk 0:01:52.8]} 80... Kg8 {[%clk 0:00:07.2]} 81. g7
{[%clk 0:01:54.1]} 1-0